fUSD/lending_fUSD_20251104
["ID","MTS","AMOUNT","RATE_DAILY","PERIOD"]
[393179257,1762297851563,-151.0,0.00038313,31]
[393179258,1762297851572,-151.0,0.00038313,31]
[393179259,1762297851584,-151.0,0.00038313,31]
[393179260,1762297851593,-151.0,0.00038313,31]
[393179261,1762297851603,-151.0,0.00038313,31]
[393179262,1762297851612,-151.0,0.00038313,31]
[393179263,1762297851622,-151.0,0.00038313,31]
[393179264,1762297851632,-151.0,0.00038313,31]
[393179265,1762297851641,-151.0,0.00038313,31]
[393179266,1762297851650,-151.0,0.00038313,31]
[393179267,1762297851660,-151.0,0.00038313,31]
[393179268,1762297851670,-151.0,0.00038313,31]
[393179269,1762297851679,-151.0,0.00038313,31]
[393179270,1762297851688,-151.0,0.00038313,31]
[393179271,1762297851698,-151.0,0.00038313,31]
[393179272,1762297851707,-151.0,0.00038313,31]
[393179273,1762297851717,-151.0,0.00038313,31]
[393179274,1762297851727,-151.0,0.00038313,31]
[393179275,1762297851737,-151.0,0.00038313,31]
[393179276,1762297851746,-151.0,0.00038313,31]
[393179277,1762297851756,-301.903496,0.00038313,31]
[393179278,1762297851766,-151.0,0.00038313,31]
[393179279,1762297851775,-151.0,0.00038313,31]
[393179280,1762297851785,-151.0,0.00038313,31]
[393179281,1762297851794,-151.0,0.00038313,31]
[393179282,1762297851803,-151.0,0.00038313,31]
[393179283,1762297851812,-151.0,0.00038313,31]
[393179284,1762297851821,-151.0,0.00038313,31]
[393179285,1762297851833,-151.0,0.00038313,31]
[393179286,1762297851843,-222.439029,0.00038313,31]
[393179287,1762297851852,-151.0,0.00038313,31]
[393179288,1762297851861,-151.0,0.00038313,31]
[393179289,1762297851870,-151.0,0.00038313,31]
[393179290,1762297851880,-151.0,0.00038313,31]
[393179291,1762297851889,-151.0,0.00038313,31]
[393179292,1762297851899,-151.0,0.00038313,31]
[393179293,1762297851908,-151.0,0.00038313,31]
[393179294,1762297851917,-151.0,0.00038313,31]
[393179295,1762297851927,-238.194648,0.00038313,31]
[393179296,1762297851937,-151.0,0.00038313,31]
[393179297,1762297851947,-151.0,0.00038313,31]
[393179298,1762297851956,-151.0,0.00038313,31]
[393179299,1762297851966,-151.0,0.00038313,31]
[393179300,1762297851975,-151.0,0.00038313,31]
[393179301,1762297851984,-151.0,0.00038313,31]
[393179302,1762297851994,-151.0,0.00038313,31]
[393179303,1762297852003,-151.0,0.00038313,31]
[393179304,1762297852012,-151.0,0.00038313,31]
[393179305,1762297852022,-151.0,0.00038313,31]
[393179306,1762297852031,-151.0,0.00038313,31]
[393179307,1762297852041,-151.0,0.00038313,31]
[393179308,1762297852050,-151.0,0.00038313,31]
[393179309,1762297852059,-151.0,0.00038313,31]
[393179310,1762297852068,-4651.31795,0.00038313,2]
[393179311,1762297852077,-151.0,0.00038313,31]
[393179312,1762297852087,-293.257416,0.00038313,31]
[393179313,1762297852096,-151.0,0.00038313,31]
[393179314,1762297852105,-151.0,0.00038313,31]
[393179315,1762297852115,-151.0,0.00038313,31]
[393179316,1762297852124,-151.0,0.00038313,31]
[393179317,1762297852134,-151.0,0.00038313,31]
[393179318,1762297852143,-151.0,0.00038313,31]
[393179319,1762297852152,-151.0,0.00038313,31]
[393179320,1762297852162,-151.0,0.00038313,31]
[393179321,1762297852171,-151.0,0.00038313,31]
[393179322,1762297852180,-151.0,0.00038313,31]
[393179323,1762297852189,-264.102722,0.00038313,31]
[393179324,1762297852199,-151.0,0.00038313,31]
[393179325,1762297852208,-151.0,0.00038313,31]
[393179326,1762297852217,-216.697403,0.00038313,31]
[393179327,1762297852226,-216.697403,0.00038313,31]
[393179328,1762297852235,-216.697403,0.00038313,31]
[393179329,1762297852243,-216.697403,0.00038313,31]
[393179330,1762297852253,-216.697403,0.00038313,31]
[393179331,1762297852262,-216.697403,0.00038313,31]
[393179332,1762297852276,-216.697403,0.00038313,31]
[393179333,1762297852285,-216.697403,0.00038313,31]
[393179334,1762297852295,-216.697403,0.00038313,31]
[393179335,1762297852304,-216.697403,0.00038313,31]
[393179336,1762297852314,-216.697403,0.00038313,31]
[393179337,1762297852323,-216.697403,0.00038313,31]
[393179338,1762297852332,-216.697403,0.00038313,31]
[393179339,1762297852343,-216.697403,0.00038313,31]
[393179340,1762297852352,-151.0,0.00038313,31]
[393179341,1762297852363,-216.697403,0.00038313,31]
[393179342,1762297852372,-151.0,0.00038313,31]
[393179343,1762297852382,-216.697403,0.00038313,31]
[393179344,1762297852391,-216.697403,0.00038313,31]
[393179345,1762297852401,-151.0,0.00038313,31]
[393179346,1762297852410,-216.697403,0.00038313,31]
[393179347,1762297852419,-151.0,0.00038313,31]
[393179348,1762297852429,-216.697403,0.00038313,31]
[393179349,1762297852439,-151.0,0.00038313,31]
[393179350,1762297852450,-216.697411,0.00038313,31]
[393179351,1762297852459,-151.0,0.00038313,31]
[393179352,1762297852469,-151.0,0.00038313,31]
[393179353,1762297852479,-151.0,0.00038313,31]
[393179354,1762297852488,-151.0,0.00038313,31]
[393179355,1762297852497,-151.0,0.00038313,31]
[393179356,1762297852507,-151.0,0.00038313,31]
[393179357,1762297852517,-151.0,0.00038313,31]
[393179358,1762297852527,-151.0,0.00038313,31]
[393179359,1762297852536,-279.732016,0.00038313,31]
[393179360,1762297852547,-151.0,0.00038313,31]
[393179361,1762297852556,-151.0,0.00038313,31]
[393179362,1762297852566,-151.0,0.00038313,31]
[393179363,1762297852575,-151.0,0.00038313,31]
[393179364,1762297852586,-159.550692,0.00038313,31]
[393179365,1762297852595,-151.0,0.00038313,31]
[393179366,1762297852604,-151.0,0.00038313,31]
[393179367,1762297852613,-151.0,0.00038313,31]
[393179368,1762297852623,-151.0,0.00038313,31]
[393179369,1762297852632,-151.0,0.00038313,31]
[393179370,1762297852641,-151.0,0.00038313,31]
[393179371,1762297852650,-151.0,0.00038313,31]
[393179372,1762297852659,-151.0,0.00038313,31]
[393179373,1762297852669,-151.0,0.00038313,31]
[393179374,1762297852679,-151.0,0.00038313,31]
[393179375,1762297852688,-151.0,0.00038313,31]
[393179376,1762297852698,-151.0,0.00038313,31]
[393179377,1762297852707,-151.0,0.00038313,31]
[393179378,1762297852716,-151.0,0.00038313,31]
[393179379,1762297852726,-175.65388,0.00038313,31]
[393179380,1762297852735,-151.0,0.00038313,31]
[393179381,1762297852744,-151.0,0.00038313,31]
[393179382,1762297852753,-151.0,0.00038313,31]
[393179383,1762297852763,-707.799232,0.00038313,31]
[393179384,1762297852773,-707.799232,0.00038313,31]
[393179385,1762297852782,-151.0,0.00038313,31]
[393179386,1762297852791,-707.799232,0.00038313,31]
[393179387,1762297852801,-707.799232,0.00038313,31]
[393179388,1762297852811,-160.782662,0.00038313,31]
[393179389,1762297852821,-151.0,0.00038313,31]
[393179390,1762297852832,-707.799232,0.00038313,31]
[393179391,1762297852842,-163.166422,0.00038313,31]
[393179392,1762297852851,-707.799232,0.00038313,31]
[393179393,1762297852861,-707.799232,0.00038313,31]
[393179394,1762297852871,-707.799232,0.00038313,31]
[393179395,1762297852881,-707.799232,0.00038313,31]
[393179396,1762297852891,-707.799232,0.00038313,31]
[393179397,1762297852900,-707.799232,0.00038313,31]
[393179398,1762297852910,-707.799232,0.00038313,31]
[393179399,1762297852919,-707.799232,0.00038313,31]
[393179400,1762297853196,-707.799232,0.00038313,31]
[393179401,1762297853206,-151.0,0.00038313,31]
[393179402,1762297853215,-707.799232,0.00038313,31]
[393179403,1762297853225,-151.0,0.00038313,31]
[393179404,1762297853235,-151.0,0.00038313,31]
[393179405,1762297853245,-707.799232,0.00038313,31]
[393179406,1762297853255,-294.859152,0.00038313,31]
[393179407,1762297853268,-707.799232,0.00038313,31]
[393179408,1762297853277,-707.799232,0.00038313,31]
[393179409,1762297853287,-707.799232,0.00038313,31]
[393179410,1762297853296,-707.799236,0.00038313,31]
[393179411,1762297853305,-252.467454,0.00038313,31]
[393179412,1762297853315,-252.467454,0.00038313,31]
[393179413,1762297853326,-252.467454,0.00038313,31]
[393179414,1762297853336,-252.467454,0.00038313,31]
[393179415,1762297853347,-252.467454,0.00038313,31]
[393179416,1762297853356,-252.467454,0.00038313,31]
[393179417,1762297853366,-151.0,0.00038313,30]
[393179418,1762297853376,-252.467454,0.00038313,31]
[393179419,1762297853385,-151.0,0.00038313,31]
[393179420,1762297853395,-151.0,0.00038313,30]
[393179421,1762297853404,-252.467454,0.00038313,31]
[393179422,1762297853414,-151.0,0.00038313,31]
[393179423,1762297853424,-252.467454,0.00038313,31]
[393179424,1762297853434,-151.0,0.00038313,30]
[393179425,1762297853443,-153.473802,0.00038313,31]
[393179426,1762297853453,-252.467454,0.00038313,31]
[393179427,1762297853462,-151.0,0.00038313,30]
[393179428,1762297853472,-252.467454,0.00038313,31]
[393179429,1762297853481,-151.0,0.00038313,30]
[393179430,1762297853491,-252.467454,0.00038313,31]
[393179431,1762297853501,-151.0,0.00038313,30]
[393179432,1762297853511,-252.467454,0.00038313,31]
[393179433,1762297853520,-151.0,0.00038313,30]
[393179434,1762297853530,-252.467454,0.00038313,31]
[393179435,1762297853539,-151.0,0.00038313,30]
[393179436,1762297853549,-252.467454,0.00038313,31]
[393179437,1762297853558,-151.0,0.00038313,30]
[393179438,1762297853568,-252.467454,0.00038313,31]
[393179439,1762297853578,-151.0,0.00038313,30]
[393179440,1762297853588,-252.467454,0.00038313,31]
[393179441,1762297853598,-160.865944,0.00038313,30]
[393179442,1762297853608,-252.467454,0.00038313,31]
[393179443,1762297853618,-252.467454,0.00038313,31]
[393179444,1762297853627,-252.46746332,0.00038313,31]
[393179445,1762297853637,-152.368206,0.00038313,31]
[393179446,1762297853646,-151.0,0.00038313,31]
[393179447,1762297853656,-200.0,0.00038313,2]
[393179448,1762297853666,-151.0,0.00038313,31]
[393179449,1762297853676,-151.0,0.00038313,31]
[393179450,1762297853686,-151.0,0.00038313,31]
[393179451,1762297853697,-151.0,0.00038313,31]
[393179452,1762297853707,-151.0,0.00038313,31]
[393179453,1762297853717,-151.0,0.00038313,31]
[393179454,1762297853727,-151.0,0.00038313,31]
[393179455,1762297853737,-151.0,0.00038313,31]
[393179456,1762297853747,-151.0,0.00038313,31]
[393179457,1762297853757,-151.0,0.00038313,31]
[393179458,1762297853766,-151.0,0.00038313,31]
[393179459,1762297853776,-151.0,0.00038313,31]
[393179460,1762297853786,-151.0,0.00038313,31]
[393179461,1762297853796,-151.0,0.00038313,31]
[393179462,1762297853807,-151.0,0.00038313,31]
[393179463,1762297853817,-151.0,0.00038313,31]
[393179464,1762297853827,-151.0,0.00038313,31]
[393179465,1762297853838,-246.132278,0.00038313,31]
[393179466,1762297853847,-151.0,0.00038313,31]
[393179467,1762297853857,-151.0,0.00038313,31]
[393179468,1762297853867,-151.0,0.00038313,31]
[393179469,1762297853877,-151.0,0.00038313,31]
[393179470,1762297853887,-151.0,0.00038313,31]
[393179471,1762297853897,-151.0,0.00038313,31]
[393179472,1762297853909,-151.0,0.00038313,31]
[393179473,1762297853919,-151.0,0.00038313,31]
[393179474,1762297853929,-151.0,0.00038313,31]
[393179475,1762297853939,-151.0,0.00038313,31]
[393179476,1762297853948,-223.974124,0.00038313,31]
[393179477,1762297853958,-156.384792,0.00038313,31]
[393179478,1762297853968,-151.0,0.00038313,31]
[393179479,1762297853978,-151.0,0.00038313,31]
[393179480,1762297853988,-151.0,0.00038313,31]
[393179481,1762297853998,-158.042219,0.00038313,31]
[393179482,1762297854008,-151.0,0.00038313,31]
[393179483,1762297854019,-151.0,0.00038313,31]
[393179484,1762297854030,-151.0,0.00038313,31]
[393179485,1762297854040,-154.614434,0.00038313,31]
[393179486,1762297854051,-151.0,0.00038313,31]
[393179487,1762297854061,-151.0,0.00038313,31]
[393179488,1762297854070,-151.0,0.00038313,31]
[393179489,1762297854081,-238.379712,0.00038313,31]
[393179490,1762297854091,-151.0,0.00038313,31]
[393179491,1762297854101,-151.0,0.00038313,31]
[393179492,1762297854110,-151.0,0.00038313,31]
[393179493,1762297854120,-151.0,0.00038313,31]
[393179494,1762297854130,-151.0,0.00038313,31]
[393179495,1762297854140,-17147.1902944,0.00038313,31]
[393179496,1762297854150,-172829.87450159,0.00038313,7]
[393179497,1762297854217,-288.88849397,0.00038313,7]
[393179498,1762297854303,-500.0,0.00031149,120]
[393179499,1762297854312,-9.8524002,0.00038313,31]
[393179500,1762297854440,-141.1475998,0.00038313,31]
[393179501,1762297854450,-160.52020013,0.00038313,7]
[393179502,1762297854594,-151.0,0.00038313,31]
[393179503,1762297854603,-151.0,0.00038313,31]
[393179504,1762297854613,-151.0,0.00038313,31]
[393179505,1762297854623,-151.0,0.00038313,31]
[393179506,1762297854632,-151.0,0.00038313,31]
[393179507,1762297854642,-151.0,0.00038313,31]
[393179508,1762297854651,-151.0,0.00038313,31]
[393179509,1762297854660,-151.0,0.00038313,31]
[393179510,1762297854671,-275.843501,0.00038313,30]
[393179511,1762297854681,-438.15202411,0.00038313,7]
[393179512,1762297854702,-1618.10000001,0.00038313,7]
[393179513,1762297854922,-299.95460011,0.00035819,2]
[393179514,1762297854935,-598.44994,0.00035819,2]
[393179515,1762297854951,-1031.3894694,0.00035819,2]
[393179516,1762297854963,-706.82447489,0.00035819,2]
[393179517,1762297854974,-10863.67007578,0.00035819,2]
[393179518,1762297854984,-151.0,0.00038313,31]
[393179519,1762297854993,-275.843501,0.00038313,30]
[393179520,1762297855002,-151.0,0.00038313,31]
[393179521,1762297855011,-275.843501,0.00038313,30]
[393179522,1762297855020,-285.969111,0.00038313,31]
[393179523,1762297855029,-275.843501,0.00038313,30]
[393179524,1762297855038,-275.843501,0.00038313,30]
[393179525,1762297855047,-275.843501,0.00038313,30]
[393179526,1762297855057,-275.843501,0.00038313,30]
[393179527,1762297855066,-275.843501,0.00038313,30]
[393179528,1762297855076,-275.843501,0.00038313,30]
[393179529,1762297855085,-275.843501,0.00038313,30]
[393179530,1762297855094,-275.843501,0.00038313,30]
[393179531,1762297855104,-275.843501,0.00038313,30]
[393179532,1762297855113,-959.53820698,0.00038313,7]
[393179534,1762297865680,500.0,0.00029008,120]
[393179536,1762297884098,500.0,0.00029008,120]
[393179539,1762297930033,262.55887276,0.00038313,31]
[393179540,1762297930634,151.0,0.00038313,31]
[393179541,1762297931427,151.0,0.00038313,31]
[393179542,1762297932051,151.0,0.00038313,31]
[393179543,1762297932901,297.64209355,0.00038313,31]
[393179544,1762297964358,215.4,0.00038313,30]
[393179545,1762297970354,500.0,0.00029008,120]
[393179547,1762298008855,250.0,0.00017,2]
[393179548,1762298011352,196.0,0.00016712,2]
[393179594,1762298692695,500.0,0.00038308,60]
[393179595,1762298708250,95500.0,0.00018,2]
[393179596,1762298708283,2978419.32043782,0.00018,2]
[393179597,1762298710493,16532.88710817,0.000154,2]
[393179598,1762298724795,20000.0,0.000175,2]
[393179599,1762298726251,9003.83298297,0.0002739,120]
[393179904,1762298821513,1517.64,0.000153,2]
[393180049,1762298847859,356.43379398,0.000166,2]
[393180172,1762298867371,57553.68090655,0.00018,2]
[393180189,1762298870845,925174.03775348,0.00015,2]
[393180190,1762298870871,5000.0,0.00015,2]
[393180191,1762298870896,1607207.61420522,0.00015,2]
[393180193,1762298872061,1600.0,0.00025754,120]
[393180195,1762298872276,1600.0,0.00028616,120]
[393180251,1762298880956,999.99999906,0.00015,2]
[393180284,1762298886061,200.0,0.0001634,2]
[393180389,1762298909136,502.86110672,0.000154,2]
[393180410,1762298912644,2215.44502856,0.00015807,2]
[393180814,1762298993568,150.0,0.00021676,120]
[393181004,1762299032881,-1178.66345847,0.00018,2]
[393181005,1762299032893,-115.09364375,0.00018999,2]
[393181006,1762299032961,-184.90635625,0.00018999,2]
[393181007,1762299032971,-1200.0,0.00018999,2]
[393181008,1762299032982,-300.0,0.00019,2]
[393181009,1762299032994,-822.86134675,0.00019,2]
[393181011,1762299033044,-4295.24390993,0.00019,2]
[393181012,1762299033055,-257.33364253,0.0001979,2]
[393181013,1762299033065,-258.18798456,0.000199,2]
[393181014,1762299033076,-502.49665094,0.00019973,2]
[393181015,1762299033086,-500.0,0.00019973,2]
[393181016,1762299033100,-450.0,0.00019998,2]
[393181017,1762299033110,-375.5665846,0.00019999,2]
[393181018,1762299033121,-500.0,0.00019999,2]
[393181019,1762299033131,-487.80205991,0.00019999,2]
[393181020,1762299033141,-500.0,0.00019999,2]
[393181021,1762299033153,-210.82562825,0.00019999,2]
[393181022,1762299033164,-500.0,0.00019999,2]
[393181023,1762299033175,-216.68938768,0.00019999,2]
[393181024,1762299033186,-173.18401907,0.00019999,2]
[393181025,1762299033197,-500.0,0.00019999,2]
[393181026,1762299033208,-379.82786191,0.00019999,2]
[393181027,1762299033220,-500.0,0.00019999,2]
[393181028,1762299033232,-500.0,0.00019999,2]
[393181030,1762299033244,-500.0,0.00019999,2]
[393181031,1762299033256,-500.0,0.00019999,2]
[393181032,1762299033268,-346.89728038,0.00019999,2]
[393181033,1762299033279,-10814.58751121,0.0002,2]
[393181034,1762299033289,-1518.71573795,0.0002,2]
[393181035,1762299033301,-2394.36414285,0.0002,2]
[393181036,1762299033349,-22960.86783977,0.0002,2]
[393181037,1762299033360,-4654.72680012,0.0002,2]
[393181038,1762299033372,-3950.0,0.0002,2]
[393181039,1762299033383,-58623.10509414,0.0002,2]
[393181040,1762299033397,-14968.5429025,0.0002,2]
[393181041,1762299033408,-1433.69394193,0.0002,2]
[393181042,1762299033421,-2140.38278782,0.0002,2]
[393181044,1762299033433,-3133.03609757,0.0002,2]
[393181045,1762299033445,-514.60228913,0.0002,2]
[393181046,1762299033455,-1092.96555863,0.0002,2]
[393181047,1762299033468,-189.41789295,0.0002,2]
[393181048,1762299033479,-586.86493948,0.0002,2]
[393181049,1762299033492,-555.66208952,0.0002,2]
[393181050,1762299033517,-250.0,0.0002,2]
[393181051,1762299033532,-3252.095732,0.0002,2]
[393181052,1762299033545,-1104.82449094,0.0002,2]
[393181053,1762299033558,-1556.73698587,0.0002,2]
[393181054,1762299033569,-3198.10261443,0.0002,2]
[393181086,1762299038400,-598.07980968,0.0002,2]
[393181087,1762299038411,-948.92279917,0.0002,2]
[393181090,1762299038450,-5414.18436561,0.0002,2]
[393181092,1762299038460,-1035.23766027,0.0002,2]
[393181094,1762299038470,-1395.20083216,0.0002,2]
[393181096,1762299038482,-1441.56931453,0.0002,2]
[393181099,1762299038492,-8726.78224068,0.0002,2]
[393181102,1762299038827,-4489.72238859,0.0002001,2]
[393181103,1762299038854,-544.38170658,0.0002001,2]
[393181110,1762299040450,-3969.1234197,0.0002001,2]
[393181111,1762299040460,-193.80463721,0.00020521,2]
[393181112,1762299040470,-5915.83186898,0.000207,2]
[393181113,1762299040482,-14817.95452021,0.000207,2]
[393181114,1762299040493,-316.29041593,0.000207,2]
[393181121,1762299043522,-1392.12707535,0.000207,2]
[393181122,1762299043532,-420.0,0.00020709,2]
[393181123,1762299043542,-1680.0,0.0002081,2]
[393181125,1762299043551,-16459.65714837,0.00021,2]
[393181126,1762299043564,-3540.34285163,0.00021,2]
[393181127,1762299043574,-1954.56766968,0.00021,2]
[393181128,1762299043585,-870.7,0.00021,2]
[393181129,1762299043599,-479.65739438,0.00021,2]
[393181139,1762299046936,-972.36699963,0.00021,2]
[393181451,1762299113934,500.0,0.00027989,120]
[393181454,1762299114178,500.0,0.00027999,120]
[393181456,1762299114408,500.0,0.00027999,120]
[393181462,1762299115015,500.0,0.00029989,120]
[393181690,1762299177708,500.0,0.00027999,120]
[393181767,1762299194268,174.78,0.00016977,2]
[393182297,1762299312107,182.0,0.00019032,120]
[393182307,1762299313342,182.0,0.00019984,120]
[393182316,1762299314590,182.0,0.00020983,120]
[393182326,1762299315860,182.0,0.00022032,120]
[393182336,1762299317432,182.0,0.00023133,120]
[393182337,1762299318694,182.0,0.0002429,120]
[393182338,1762299319945,182.0,0.00025505,120]
[393182340,1762299321167,182.0,0.0002678,120]
[393182345,1762299322518,182.0,0.00028119,120]
[393182348,1762299323802,182.0,0.00029525,120]
[393182420,1762299351431,352.45533764,0.00027999,120]
[393182566,1762299428756,1000.0,0.00017,10]
[393182678,1762299469394,203.6285,0.00027999,120]
[393183265,1762299693501,417.11,0.00013699,2]
[393183332,1762299787513,217.908061,0.00016733,2]
[393183333,1762299787893,865.5538498,0.00016218,2]
[393183334,1762299787921,217.908061,0.00017121,2]
[393183335,1762299788084,865.5538498,0.0001661,2]
[393183336,1762299788138,217.908061,0.00017379,2]
[393183337,1762299788393,865.5538498,0.00016871,2]
[393183338,1762299788442,217.908061,0.00017654,2]
[393183339,1762299788743,865.5538498,0.00017021,2]
[393183340,1762299788785,217.908061,0.00017883,2]
[393183341,1762299789038,865.5538498,0.0001752,2]
[393183342,1762299789871,865.5538498,0.00017538,2]
[393183383,1762299934349,1023.47843132,0.00038264,30]
[393183491,1762300231584,-382.92827184,0.00018141,2]
[393183492,1762300231596,-226.3503144,0.00019076,2]
[393183493,1762300231605,-226.35031438,0.00019146,2]
[393183494,1762300231615,-41.41164498,0.00019175,2]
[393183495,1762300231678,-258.58835502,0.00019175,2]
[393183496,1762300231687,-300.0,0.00019175,2]
[393183497,1762300231696,-526.53919995,0.00019175,2]
[393183498,1762300231711,-673.46080005,0.00019175,2]
[393183499,1762300231720,-189.93434508,0.00019176,2]
[393183500,1762300231732,-310.06565492,0.00019176,2]
[393183501,1762300231741,-500.0,0.00019176,2]
[393183502,1762300231750,-350.43480882,0.00019176,2]
[393183503,1762300231759,-500.0,0.00019176,2]
[393183504,1762300231768,-500.0,0.00019176,2]
[393183505,1762300231778,-500.0,0.00019176,2]
[393183506,1762300231788,-500.0,0.00019176,2]
[393183507,1762300231797,-649.00913396,0.00019176,2]
[393183508,1762300231806,-1200.0,0.00019176,2]
[393183509,1762300231816,-150.0,0.00019176,2]
[393183510,1762300231827,-67204.6409746,0.00019177,2]
[393183511,1762300231838,-1092.1590254,0.00019177,2]
[393183512,1762300231848,-865.553849,0.00019214,2]
[393183513,1762300231859,-226.35031438,0.00019216,2]
[393183514,1762300231869,-217.908062,0.00019263,2]
[393183515,1762300231879,-865.553849,0.00019459,2]
[393183516,1762300231888,-217.908062,0.00019562,2]
[393183517,1762300231898,-217.908062,0.00019735,2]
[393183518,1762300231910,-300.0,0.00019836,2]
[393183519,1762300231919,-372.91434912,0.00019836,2]
[393183520,1762300231929,-250.0,0.00019836,2]
[393183521,1762300231938,-250.0,0.00019836,2]
[393183522,1762300231948,-205.7444271,0.0001988,2]
[393183523,1762300231961,-327.7799999,0.0001988,2]
[393183524,1762300231976,-332.029422,0.0001988,2]
[393183525,1762300231985,-758.62864153,0.00019939,2]
[393183526,1762300231995,-435.10867622,0.00019939,2]
[393183527,1762300232006,-10032.27128546,0.00019939,2]
[393183528,1762300232015,-7776.02215518,0.00019939,2]
[393183529,1762300232025,-865.553849,0.00020019,2]
[393183530,1762300232035,-163.27,0.00020029,2]
[393183532,1762300232046,-341.46144194,0.00020038,2]
[393183533,1762300232055,-500.0,0.00020038,2]
[393183535,1762300232064,-262.89660922,0.00020038,2]
[393183537,1762300232075,-197.57793977,0.00020038,2]
[393183539,1762300232084,-500.0,0.00020038,2]
[393183541,1762300232094,-199.08,0.00020038,2]
[393183543,1762300232103,-500.0,0.00020038,2]
[393183545,1762300232112,-500.0,0.00020038,2]
[393183547,1762300232124,-70164.46777399,0.00020039,2]
[393183550,1762300232135,-578.377235,0.00020039,2]
[393183554,1762300232147,-17747.82680436,0.00020039,2]
[393183556,1762300232158,-2669.52000002,0.00020039,2]
[393183557,1762300237591,-8426.28311524,0.00020039,2]
[393183559,1762300237604,-505.96095637,0.00020039,2]
[393183596,1762300239784,-4202.32312226,0.00020039,2]
[393183597,1762300240010,-507.3,0.00020039,2]
[393183606,1762300243043,-152515.00271994,0.00020039,2]
[393183607,1762300243055,-8425.7016299,0.00020039,2]
[393183608,1762300246128,-17795.61914339,0.00020039,2]
[393183615,1762300274379,500.0,0.00027774,120]
[393183618,1762300289374,500.0,0.0002796,120]
[393183619,1762300289613,500.0,0.00027999,120]
[393183620,1762300289878,500.0,0.00027999,120]
[393183624,1762300331233,-500.0,0.00019176,2]
[393183625,1762300331259,-500.0,0.00019176,2]
[393183626,1762300331279,-548.26030548,0.00019176,2]
[393183627,1762300331305,-500.0,0.00019176,2]
[393183628,1762300331332,-256.40891658,0.00019176,2]
[393183629,1762300331358,-500.0,0.00019176,2]
[393183630,1762300331387,-500.0,0.00019176,2]
[393183631,1762300331413,-500.0,0.00019176,2]
[393183632,1762300331433,-217.71718604,0.00019814,2]
[393183633,1762300331455,-8491.7816808,0.00019864,2]
[393183634,1762300331476,-256.92087611,0.00019939,2]
[393183635,1762300331497,-865.28382508,0.00019975,2]
[393183636,1762300331519,-393.41875837,0.00020038,2]
[393183637,1762300331541,-150.0,0.00020038,2]
[393183638,1762300331573,-500.0,0.00020038,2]
[393183639,1762300331601,-500.0,0.00020038,2]
[393183640,1762300331627,-500.0,0.00020038,2]
[393183641,1762300331648,-277.63845154,0.00020039,2]
[393183670,1762300470091,309.76474602,0.00027397,120]
[393183677,1762300505881,500.0,0.00027989,120]
[393183678,1762300506133,500.0,0.00027999,120]
[393183680,1762300600383,155.38,0.00010353,2]
[393183681,1762300600571,155.38,0.00011774,2]
[393183682,1762300600766,155.38,0.00013195,2]
[393183683,1762300601017,155.38,0.00014616,2]
[393183684,1762300601224,155.38,0.00016037,2]
[393183685,1762300601449,155.38,0.00017458,2]
[393183701,1762300799486,1652.23,0.00016446,2]